bitfinex-derivatives/quotes_ETHF0:USTF0_20230902
["timestamp","ask_amount","ask_price","bid_price","bid_amount"]
[1693655011491,12.10561352,1635.0,1634.9,6.95932]
[1693655011791,12.10561352,1635.0,1634.9,4.58872]
[1693655020895,12.10561352,1635.0,1634.9,6.88308]
[1693655021798,9.23845,1635.0,1634.9,7.89943246]
[1693655023903,12.10561352,1635.0,1634.9,6.88308]
[1693655024599,12.10561352,1635.0,1634.9,7.89943246]
[1693655024993,12.10561352,1635.0,1634.9,6.88308]
[1693655026197,9.23845,1635.0,1634.9,7.89943246]
[1693655026905,9.81128352,1635.0,1634.9,7.89943246]
[1693655027598,6.94412,1635.0,1634.9,7.89943246]
[1693655027898,9.81128352,1635.0,1634.9,6.88308]
[1693655028404,6.94412,1635.0,1634.9,7.89943246]
[1693655028806,9.81128352,1635.0,1634.9,6.88308]
[1693655029607,9.81128352,1635.0,1634.9,7.89943246]
[1693655029900,9.81128352,1635.0,1634.9,6.88308]
[1693655030407,9.81128352,1635.0,1634.9,7.89943246]
[1693655030796,9.81128352,1635.0,1634.9,6.88308]
[1693655031609,9.81128352,1635.0,1634.9,7.89943246]
[1693655031907,9.81128352,1635.0,1634.9,6.88308]
[1693655032708,12.10561352,1635.0,1634.9,4.58872]
[1693655034203,12.10561352,1635.0,1634.9,6.88308]
[1693655035503,12.10561352,1635.0,1634.9,4.58872]
[1693655035705,12.10561352,1635.0,1634.9,2.29436]
[1693655038612,12.10561352,1635.0,1634.9,4.58871]
[1693655039907,12.10561352,1635.0,1634.9,2.29435]
[1693655040509,17.62461352,1635.0,1634.8,4.76487]
[1693655040715,1.25938712,1634.9,1634.8,7.05937]
[1693655040911,10.43682712,1634.9,1634.8,7.05937]
[1693655042009,15.95582712,1634.9,1634.8,7.05937]
[1693655043417,15.95582712,1634.9,1634.8,8.07572246]
[1693655044217,15.95582712,1634.9,1634.8,7.05937]
[1693655045312,15.95582712,1634.9,1634.8,8.07572246]
[1693655045611,15.95582712,1634.9,1634.8,7.05937]
[1693655046715,0.0612,1634.8,1634.7,6.88365]
[1693655046916,9.2392,1634.8,1634.7,9.44175]
[1693655047215,12.10636352,1634.8,1634.7,10.45810246]
[1693655047818,12.10636352,1634.8,1634.7,9.44175]
[1693655048317,12.10636352,1634.8,1634.7,10.45810246]
[1693655048719,12.10636352,1634.8,1634.7,9.44175]
[1693655050218,12.10636352,1634.8,1634.7,10.45810246]
[1693655050719,12.10636352,1634.8,1634.7,9.44175]
[1693655051223,12.10636352,1634.8,1634.7,10.45810246]
[1693655051521,12.10636352,1634.8,1634.7,9.44175]
[1693655053226,12.10636352,1634.8,1634.7,10.45810246]
[1693655053920,12.10636352,1634.8,1634.7,9.44175]
[1693655054725,9.81186352,1634.8,1634.7,9.44175]
[1693655055824,4.589,1634.8,1634.7,12.75274246]
[1693655056025,4.58884,1634.9,1634.7,18.27174246]
[1693655056227,4.58884,1634.9,1634.8,2.26993648]
[1693655056525,4.58884,1634.9,1634.8,11.44793648]
[1693655057525,6.88327,1634.9,1634.8,11.44793648]
[1693655057822,9.75043352,1634.9,1634.8,11.44793648]
[1693655058327,6.88327,1634.9,1634.8,11.44793648]
[1693655058628,9.75043352,1634.9,1634.8,11.44793648]
[1693655059129,6.88327,1634.9,1634.8,11.44793648]
[1693655059724,9.75043352,1634.9,1634.8,11.44793648]
[1693655062828,12.04486352,1634.9,1634.7,10.37163]
[1693655063031,15.79715064,1634.9,1634.8,2.29449]
[1693655063226,15.79715064,1634.9,1634.8,4.58898]
[1693655065930,15.79715064,1634.9,1634.8,6.88347]
[1693655070238,15.79715064,1634.9,1634.8,7.89982246]
[1693655070536,15.79715064,1634.9,1634.8,6.88347]
[1693655073137,15.79715064,1634.9,1634.8,7.89982246]
[1693655074439,15.79715064,1634.9,1634.8,6.88347]
[1693655079440,15.79715064,1634.9,1634.8,4.58898]
[1693655081844,15.79715064,1634.9,1634.8,5.60533246]
[1693655082243,15.79715064,1634.9,1634.8,4.58898]
[1693655090860,15.79715064,1634.9,1634.8,5.60533246]
[1693655091160,15.85835064,1634.9,1634.8,4.58898]
[1693655091459,0.0612,1634.8,1634.7,14.96074]
[1693655091657,9.23916,1634.8,1634.7,15.97709246]
[1693655092062,9.23916,1634.8,1634.7,14.96074]
[1693655092656,9.23916,1634.8,1634.7,15.97709246]
[1693655093357,9.23916,1634.8,1634.7,14.96074]
[1693655093761,9.23916,1634.8,1634.7,15.97709246]
[1693655095159,9.23916,1634.8,1634.7,14.96074]
[1693655095655,9.23916,1634.8,1634.7,15.97709246]
[1693655095853,9.23916,1634.8,1634.7,10.37162]
[1693655096049,9.23916,1634.8,1634.7,5.519]
[1693655097556,14.75816,1634.8,1634.6,9.5]
[1693655097758,4.06535064,1634.7,1634.6,9.5]
[1693655097950,13.24387064,1634.7,1634.6,9.5]
[1693655098961,0.0612,1634.6,1634.5,10.10865]
[1693655099157,6.94554,1634.6,1634.5,14.87367]
[1693655101864,6.94554,1634.6,1634.5,9.35467]
[1693655103464,6.94554,1634.6,1634.5,10.37102246]
[1693655104058,6.94554,1634.6,1634.5,9.35467]
[1693655106962,8.65468064,1634.7,1634.5,18.18494246]
[1693655107164,6.88409,1634.7,1634.5,18.18494246]
[1693655107465,6.88409,1634.7,1634.5,22.95937894]
[1693655108265,6.88434,1634.6,1634.5,22.95937894]
[1693655109971,6.88434,1634.6,1634.5,20.66445894]
[1693655113973,9.75150352,1634.6,1634.5,20.66445894]
[1693655114472,6.88434,1634.6,1634.5,20.66445894]
[1693655117069,9.75150352,1634.6,1634.5,20.66445894]
[1693655117572,6.88434,1634.6,1634.5,20.66445894]
[1693655118878,9.75150352,1634.6,1634.5,20.66445894]
[1693655120082,0.0612,1634.8,1634.5,22.95937894]
[1693655120282,2.35573,1634.8,1634.7,5.519]
[1693655120476,6.94488,1634.8,1634.7,16.19926187]
[1693655120679,6.94488,1634.8,1634.7,18.49390187]
[1693655120980,6.94488,1634.8,1634.7,17.98384894]
[1693655121582,4.65029,1634.8,1634.7,17.98384894]
[1693655123586,4.58883,1634.9,1634.7,17.98384894]
[1693655123587,4.58882,1634.9,1634.7,17.98384894]
[1693655123786,4.58898,1634.8,1634.7,12.46484894]
[1693655124082,4.58898,1634.8,1634.7,17.98384894]
[1693655127191,4.65018,1634.8,1634.7,17.98384894]
[1693655127496,7.51734352,1634.8,1634.7,17.98384894]
[1693655127997,9.81183352,1634.8,1634.7,17.98384894]
[1693655128597,6.94467,1634.8,1634.7,17.98384894]
[1693655130094,9.81183352,1634.8,1634.7,16.96749648]
[1693655130294,9.81183352,1634.8,1634.7,17.98384894]
[1693655130496,6.94467,1634.8,1634.7,17.98384894]
[1693655132998,9.81183352,1634.8,1634.7,16.96749648]
[1693655133193,9.81499462,1634.8,1634.7,16.96749648]
[1693655133389,8.14601822,1634.8,1634.7,5.519]
[1693655133591,8.14601822,1634.8,1634.4,5.08044937]
[1693655133592,18.82667174,1634.8,1634.4,5.08044937]
[1693655133799,5.519,1634.6,1634.5,2.29485]
[1693655134092,18.76319064,1634.6,1634.4,6.88467]
[1693655134394,18.76319064,1634.6,1634.4,4.58976]
[1693655135902,18.82439064,1634.6,1634.4,4.58976]
[1693655140303,0.00313043,1634.5,1634.4,4.58976]
[1693655140602,9.18265043,1634.5,1634.4,4.58976]
[1693655141904,9.24385043,1634.5,1634.4,2.29485]
[1693655142604,9.24385043,1634.5,1634.4,4.58989]
[1693655148311,9.24385043,1634.5,1634.4,5.60624246]
[1693655149003,9.24385043,1634.5,1634.4,4.58989]
[1693655149209,9.24385043,1634.5,1634.4,5.60624246]
[1693655149909,9.24385043,1634.5,1634.4,4.58989]
[1693655152713,9.24385043,1634.5,1634.4,6.88494]
[1693655153206,14.76285043,1634.5,1634.4,4.58989]
[1693655158116,9.18265043,1634.5,1634.4,4.58989]
[1693655161818,9.18265043,1634.5,1634.4,7.01039]
[1693655163419,14.76285043,1634.5,1634.4,2.4205]
[1693655163722,0.0612,1634.4,1634.3,7.01161]
[1693655164019,13.30671064,1634.4,1634.3,7.01161]
[1693655164224,13.30983073,1634.4,1634.3,7.01161]
[1693655167126,12.11164361,1634.4,1634.3,2.4214]
[1693655167428,12.11164361,1634.4,1634.3,4.71658]
[1693655168429,12.11164361,1634.4,1634.3,5.73293246]
[1693655168728,12.11164361,1634.4,1634.3,4.71658]
[1693655170029,12.11164361,1634.4,1634.3,2.4214]
[1693655170525,12.11164361,1634.4,1634.3,3.43775246]
[1693655170729,12.11164361,1634.4,1634.3,2.4214]
[1693655172033,12.11164361,1634.4,1634.3,4.71659]
[1693655172231,12.11164361,1634.4,1634.3,4.71658]
[1693655178335,12.11164361,1634.4,1634.3,5.73293246]
[1693655178636,12.11164361,1634.4,1634.3,4.71658]
[1693655179336,12.11164361,1634.4,1634.3,5.73293246]
[1693655181134,12.11164361,1634.4,1634.3,2.4214]
[1693655183835,6.94944009,1634.4,1634.3,13.54711246]
[1693655184234,6.94944009,1634.4,1634.3,15.84230246]
[1693655192543,9.81660361,1634.4,1634.3,15.84230246]
[1693655192836,6.94944009,1634.4,1634.3,15.84230246]
[1693655193638,9.81660361,1634.4,1634.3,15.84230246]
[1693655195845,6.94944009,1634.4,1634.3,15.84230246]
[1693655196538,9.81660361,1634.4,1634.3,15.84230246]
[1693655197943,6.94944009,1634.4,1634.3,15.84230246]
[1693655200544,9.81660361,1634.4,1634.3,15.84230246]
[1693655200753,15.33560361,1634.4,1634.3,9.30695]
[1693655201247,15.33560361,1634.4,1634.3,7.01176]
[1693655202150,15.33560361,1634.4,1634.3,8.02811246]
[1693655202652,15.33560361,1634.4,1634.3,7.01176]
[1693655203649,15.33560361,1634.4,1634.3,8.02811246]
[1693655204452,15.33560361,1634.4,1634.3,7.01176]
[1693655205757,15.33560361,1634.4,1634.3,8.02811246]
[1693655206055,15.33560361,1634.4,1634.3,7.01176]
[1693655206658,15.33560361,1634.4,1634.3,8.02811246]
[1693655208156,15.33560361,1634.4,1634.3,7.01176]
[1693655208556,15.33560361,1634.4,1634.3,8.02811246]
[1693655209557,15.33560361,1634.4,1634.3,7.01176]
[1693655212358,15.33560361,1634.4,1634.3,8.02811246]
[1693655213355,15.33560361,1634.4,1634.3,7.01176]
[1693655213755,15.33560361,1634.4,1634.3,8.02811246]
[1693655214462,15.33560361,1634.4,1634.3,10.32330246]
[1693655214961,12.46844009,1634.4,1634.3,10.32330246]
[1693655218863,15.33560361,1634.4,1634.3,10.32330246]
[1693655220360,12.46844009,1634.4,1634.3,10.32330246]
[1693655221963,6.94944009,1634.4,1634.3,10.32330246]
[1693655222560,9.81660361,1634.4,1634.3,10.32330246]
[1693655222963,6.94944009,1634.4,1634.3,10.32330246]
[1693655223453,9.81660361,1634.4,1634.3,10.32330246]
[1693655223659,6.94944009,1634.4,1634.3,10.32330246]
[1693655225569,9.81660361,1634.4,1634.3,10.32330246]
[1693655226161,9.81660361,1634.4,1634.3,9.30695]
[1693655227960,9.81660361,1634.4,1634.3,10.32330246]
[1693655228966,6.94944009,1634.4,1634.3,10.32330246]
[1693655230669,9.81660361,1634.4,1634.3,10.32330246]
[1693655233069,6.94944009,1634.4,1634.3,10.32330246]
[1693655237670,9.81660361,1634.4,1634.3,10.32330246]
[1693655237864,6.94944009,1634.4,1634.3,10.32330246]
[1693655238465,9.81660361,1634.4,1634.3,10.32330246]
[1693655238973,6.94944009,1634.4,1634.3,10.32330246]
[1693655239774,9.81660361,1634.4,1634.3,10.32330246]
[1693655240675,6.94944009,1634.4,1634.3,10.32330246]
[1693655240968,9.68366164,1634.6,1634.3,18.13749246]
[1693655241166,0.00354556,1634.4,1634.3,12.61849246]
[1693655241363,0.00354556,1634.4,1634.3,20.40742894]
[1693655241675,6.88416,1634.7,1634.3,20.40742894]
[1693655241864,6.88416,1634.7,1634.5,5.519]
[1693655242068,6.88416,1634.7,1634.6,12.69009894]
[1693655246276,6.88416,1634.7,1634.6,10.39532894]
[1693655248168,9.17891,1634.7,1634.6,10.39532894]
[1693655249173,12.04607352,1634.7,1634.6,8.10055894]
[1693655249674,9.17891,1634.7,1634.6,8.10055894]
[1693655252080,12.04607352,1634.7,1634.6,8.10055894]
[1693655253182,9.17891,1634.7,1634.6,8.10055894]
[1693655255185,9.17891,1634.7,1634.6,10.39532894]
[1693655263385,12.04607352,1634.7,1634.6,8.12539246]
[1693655264485,12.04607352,1634.7,1634.6,7.10904]
[1693655264681,12.04607352,1634.7,1634.6,8.12539246]
[1693655265181,9.17891,1634.7,1634.6,8.12539246]
[1693655268685,6.88416,1634.7,1634.6,10.42016246]
[1693655272984,4.58941,1634.7,1634.6,10.42016246]
[1693655276289,6.88416,1634.7,1634.6,10.42016246]
[1693655276495,9.75132352,1634.7,1634.6,9.40381]
[1693655276994,6.88416,1634.7,1634.6,10.42016246]
[1693655278397,9.75132352,1634.7,1634.6,9.40381]
[1693655278803,9.75132352,1634.7,1634.6,10.42016246]
[1693655279297,9.75132352,1634.7,1634.6,9.40381]
[1693655279495,9.75132352,1634.7,1634.6,10.42016246]
[1693655279695,6.88416,1634.7,1634.6,10.42016246]
[1693655280501,4.58941,1634.7,1634.6,12.71493246]
[1693655280708,0.0612,1634.8,1634.6,18.23393246]
[1693655281001,4.58879,1634.9,1634.7,7.78893648]
[1693655281199,4.58878,1634.9,1634.8,7.89973246]
[1693655281502,6.88319,1634.9,1634.8,10.51803246]
[1693655281704,6.88319,1634.9,1634.8,13.05673246]
[1693655284202,7.36691661,1634.9,1634.8,13.05673246]
[1693655287708,6.88319,1634.9,1634.8,13.05673246]
[1693655294617,4.58878,1634.9,1634.8,13.05673246]
[1693655295705,6.88319,1634.9,1634.8,13.05673246]
[1693655298418,4.58878,1634.9,1634.8,13.05673246]
[1693655311927,4.58878,1634.9,1634.8,20.87019246]
[1693655317129,7.45594352,1634.9,1634.8,20.87019246]
[1693655317524,4.58878,1634.9,1634.8,20.87019246]
[1693655318124,7.45594352,1634.9,1634.8,20.87019246]
[1693655318920,7.51714352,1634.9,1634.8,10.10792]
[1693655319126,15.33050352,1634.9,1634.8,2.29446]
[1693655319320,0.0612,1634.8,1634.6,4.92284]
[1693655319516,13.24375064,1634.7,1634.6,2.29464]
[1693655319723,13.24375064,1634.7,1634.5,9.81387891]
[1693655319920,13.24375064,1634.7,1634.5,9.81385891]
[1693655321929,13.24375064,1634.7,1634.5,10.83021137]
[1693655323531,13.24375064,1634.7,1634.5,9.81385891]
[1693655323835,13.24375064,1634.7,1634.5,10.83021137]
[1693655325131,13.24375064,1634.7,1634.5,9.81385891]
[1693655326735,13.24375064,1634.7,1634.5,7.51904891]
[1693655327231,13.24375064,1634.7,1634.5,4.73309]
[1693655329223,5.5802,1634.6,1634.4,4.58991]
[1693655329530,5.5802,1634.6,1634.3,10.10924]
[1693655329531,0.0612,1634.4,1634.3,10.10924]
[1693655329736,6.94626,1634.4,1634.3,12.61722]
[1693655329929,6.94626,1634.4,1634.3,14.91238]
[1693655331934,6.94626,1634.4,1634.3,9.39338]
[1693655333929,6.94626,1634.4,1634.3,7.09822]
[1693655336435,6.94626,1634.4,1634.3,9.39338]
[1693655336636,6.94626,1634.4,1634.3,7.09822]
[1693655336938,6.94626,1634.4,1634.3,9.39338]
[1693655340342,6.94626,1634.4,1634.3,10.40973246]
[1693655340740,6.94626,1634.4,1634.3,9.39338]
[1693655344445,6.94626,1634.4,1634.3,10.40973246]
[1693655345041,6.94626,1634.4,1634.3,9.39338]
[1693655347547,6.94626,1634.4,1634.3,10.40973246]
[1693655347749,6.94626,1634.4,1634.3,9.39338]
[1693655349545,6.94626,1634.4,1634.3,10.40973246]
[1693655349847,6.94626,1634.4,1634.3,9.39338]
[1693655351451,6.94626,1634.4,1634.3,10.40973246]
[1693655351949,6.94626,1634.4,1634.3,9.39338]
[1693655352450,6.94626,1634.4,1634.3,10.40973246]
[1693655352749,6.94626,1634.4,1634.3,9.39338]
[1693655353355,6.94626,1634.4,1634.3,10.40973246]
[1693655353760,6.94626,1634.4,1634.3,9.39338]
[1693655355457,6.94626,1634.4,1634.3,7.09822]
[1693655356160,6.94626,1634.4,1634.3,9.39338]
[1693655357361,6.94626,1634.4,1634.3,10.40973246]
[1693655357760,6.94626,1634.4,1634.3,9.39338]
[1693655359259,6.94626,1634.4,1634.3,10.40973246]
[1693655360060,6.94626,1634.4,1634.3,9.39338]
[1693655362664,6.94626,1634.4,1634.3,10.40973246]
[1693655365665,6.94626,1634.4,1634.3,9.39338]
[1693655365966,6.94626,1634.4,1634.3,10.40973246]
[1693655366965,6.94626,1634.4,1634.3,9.39338]
[1693655368458,6.94626,1634.4,1634.3,10.40973246]
[1693655369061,6.94626,1634.4,1634.3,9.39338]
[1693655369663,6.94626,1634.4,1634.3,10.40973246]
[1693655369961,4.65124,1634.4,1634.3,10.40973246]
[1693655370167,12.89677772,1634.5,1634.3,12.70489246]
[1693655370465,2.29502,1634.4,1634.3,12.70489246]
[1693655371062,2.29502,1634.4,1634.3,14.97482894]
[1693655371366,4.59004,1634.4,1634.3,14.97482894]
[1693655372065,4.59004,1634.4,1634.3,20.49382894]
[1693655373167,4.59004,1634.4,1634.3,18.19866894]
[1693655373966,4.59004,1634.4,1634.3,20.49382894]
[1693655375267,4.59004,1634.4,1634.3,18.19866894]
[1693655375969,4.59004,1634.4,1634.3,20.49382894]
[1693655376367,4.59004,1634.4,1634.3,18.19866894]
[1693655378869,7.45720352,1634.4,1634.3,18.19866894]
[1693655379569,4.59004,1634.4,1634.3,18.19866894]
[1693655379969,6.88506,1634.4,1634.3,18.19866894]
[1693655381774,9.75222352,1634.4,1634.3,18.19866894]
[1693655382072,6.88506,1634.4,1634.3,18.19866894]
[1693655384777,9.75222352,1634.4,1634.3,18.19866894]
[1693655385675,6.88506,1634.4,1634.3,15.92873246]
[1693655387677,9.75222352,1634.4,1634.3,15.92873246]
[1693655387879,6.88506,1634.4,1634.3,15.92873246]
[1693655389878,9.75222352,1634.4,1634.3,15.92873246]
[1693655390580,9.81342352,1634.4,1634.3,15.92873246]
[1693655390775,6.94626,1634.4,1634.3,15.92873246]
[1693655392681,9.81342352,1634.4,1634.3,15.92873246]
[1693655393480,6.94626,1634.4,1634.3,15.92873246]
[1693655393681,9.81342352,1634.4,1634.3,15.92873246]
[1693655393981,6.94626,1634.4,1634.3,15.92873246]
[1693655395884,9.81342352,1634.4,1634.3,14.91238]
[1693655396079,9.81342352,1634.4,1634.3,15.92873246]
[1693655396484,6.94626,1634.4,1634.3,15.92873246]
[1693655398295,4.65124,1634.4,1634.3,18.22389246]
[1693655398481,4.65124,1634.4,1634.3,15.92873246]
[1693655405991,7.51840352,1634.4,1634.3,14.91238]
[1693655406490,7.51840352,1634.4,1634.3,15.92873246]
[1693655406694,4.65124,1634.4,1634.3,15.92873246]
[1693655407190,7.51840352,1634.4,1634.3,15.92873246]
[1693655408300,4.65124,1634.4,1634.3,15.92873246]
[1693655408694,9.50496484,1634.5,1634.3,18.22389246]
[1693655408998,2.6905,1634.6,1634.4,7.78893648]
[1693655409193,0.0612,1634.6,1634.5,10.19587246]
[1693655409392,0.0612,1634.6,1634.5,12.66867246]
[1693655410296,2.29461,1634.7,1634.5,18.18767246]
[1693655410501,4.65031,1634.8,1634.6,2.26993648]
[1693655410794,6.9449,1634.8,1634.7,7.90015246]
[1693655411000,6.9449,1634.8,1634.7,10.37295246]
[1693655423706,9.81206352,1634.8,1634.7,10.37295246]
[1693655424403,6.9449,1634.8,1634.7,10.37295246]
[1693655424906,9.81206352,1634.8,1634.7,10.37295246]
[1693655425202,6.9449,1634.8,1634.7,10.37295246]
[1693655426507,9.81206352,1634.8,1634.7,10.37295246]
[1693655427408,6.9449,1634.8,1634.7,10.37295246]
[1693655427608,9.81206352,1634.8,1634.7,10.37295246]
[1693655427804,6.9449,1634.8,1634.7,10.37295246]
[1693655428003,4.65031,1634.8,1634.7,10.37295246]
[1693655432014,4.65031,1634.8,1634.7,15.89195246]
[1693655434618,4.64972,1635.0,1634.7,18.18655246]
[1693655434820,4.64972,1635.0,1634.8,7.78893648]
[1693655435018,4.64972,1635.0,1634.9,7.89931246]
[1693655435520,4.64972,1635.0,1634.9,10.43561246]
[1693655435715,4.64972,1635.0,1634.9,12.72993246]
[1693655435716,0.0612,1635.0,1634.9,12.72993246]
[1693655435917,10.60597685,1635.1,1634.9,12.72993246]
[1693655436217,2.5858,1635.3,1635.0,7.78893648]
[1693655436218,6.88153,1635.3,1635.0,7.78893648]
[1693655436421,6.88153,1635.3,1635.1,15.71151246]
[1693655436617,6.88153,1635.3,1635.1,18.28011246]
[1693655437825,6.88153,1635.3,1635.2,5.519]
[1693655438116,6.88153,1635.3,1635.2,14.67063648]
[1693655440425,7.3613498,1635.3,1635.2,14.67063648]
[1693655440624,7.3613498,1635.3,1635.2,12.37673648]
[1693655441823,7.3613498,1635.3,1635.2,14.67064648]
[1693655445229,5.0674698,1635.3,1635.2,14.67064648]
[1693655445431,2.7736098,1635.3,1635.2,17.17944648]
[1693655445829,0.4798198,1635.3,1635.2,17.17944648]
[1693655446030,7.19284,1635.4,1635.2,19.47335648]
[1693655446233,9.48657,1635.4,1635.2,19.47335648]
[1693655446426,9.48657,1635.4,1635.3,2.5302]
[1693655446621,7.19284,1635.4,1635.3,10.42783246]
[1693655446925,4.58701,1635.5,1635.3,18.24059246]
[1693655447129,4.58701,1635.5,1635.4,2.26993648]
[1693655447333,4.58701,1635.5,1635.4,9.15079648]
[1693655447528,4.58701,1635.5,1635.4,11.55589648]
[1693655451940,4.58701,1635.5,1635.4,17.07489648]
[1693655462043,4.58701,1635.5,1635.4,11.55589648]
[1693655462944,6.88053,1635.5,1635.4,11.55589648]
[1693655464245,4.58701,1635.5,1635.4,11.55589648]
[1693655469750,4.58701,1635.5,1635.4,17.07489648]
[1693655470144,4.58701,1635.5,1635.4,19.36851648]
[1693655484563,2.29349,1635.5,1635.4,19.36851648]
[1693655485158,2.29349,1635.5,1635.4,16.96341648]
[1693655485359,0.0612,1635.6,1635.4,16.96341648]
[1693655485556,0.0612,1635.6,1635.5,6.53535246]
[1693655485756,0.0612,1635.6,1635.5,18.55443789]
[1693655488663,0.0612,1635.6,1635.5,18.11217246]
[1693655497870,2.5187,1635.7,1635.5,18.11217246]
[1693655498069,2.5187,1635.7,1635.6,5.519]
[1693655498269,2.5187,1635.7,1635.6,14.69236]
[1693655498669,2.5187,1635.7,1635.6,17.15716]
[1693655498864,2.5187,1635.7,1635.6,19.42709648]
[1693655499476,4.8119,1635.7,1635.6,19.42709648]
[1693655503878,7.10511,1635.7,1635.6,19.42709648]
[1693655507280,0.55862217,1635.8,1635.6,19.42709648]
[1693655507485,0.55862217,1635.8,1635.7,6.53535246]
[1693655507776,12.29295,1635.9,1635.7,18.27419246]
[1693655508078,7.79612565,1635.9,1635.8,16.96121648]
[1693655508681,7.79612565,1635.9,1635.8,19.57281648]
[1693655525293,7.79612565,1635.9,1635.8,20.0588451]
[1693655552205,10.72438917,1635.9,1635.8,15.17730862]
[1693655555212,10.72438917,1635.9,1635.8,16.19366108]
[1693655557407,10.72438917,1635.9,1635.8,15.17730862]
[1693655557605,10.72438917,1635.9,1635.8,16.19366108]
[1693655560210,7.85722565,1635.9,1635.8,16.19366108]
[1693655561316,10.72438917,1635.9,1635.8,14.69128]
[1693655561513,15.31024917,1635.9,1635.8,7.81207]
[1693655561721,0.0611,1635.8,1635.7,10.10524]
[1693655561917,0.0611,1635.8,1635.7,2.2931]
[1693655561918,8.13849712,1635.8,1635.7,2.2931]
[1693655562116,10.43156712,1635.8,1635.7,2.2931]
[1693655562417,10.43156712,1635.8,1635.7,4.58631]
[1693655562913,15.95056712,1635.8,1635.7,4.58631]
[1693655563316,15.95056712,1635.8,1635.7,2.2931]
[1693655563512,15.95056712,1635.8,1635.7,4.58631]
[1693655573924,15.95056712,1635.8,1635.7,7.20361]
[1693655583845,15.95056712,1635.8,1635.7,9.62641]
[1693655584443,15.93200532,1635.8,1635.7,9.62641]
[1693655585441,15.95060532,1635.8,1635.7,9.62641]
[1693655592155,15.95060532,1635.8,1635.7,10.64276246]
[1693655592655,15.95060532,1635.8,1635.7,9.62641]
[1693655595055,15.95060532,1635.8,1635.7,10.64276246]
[1693655595454,15.95060532,1635.8,1635.7,9.62641]
[1693655598159,15.95060532,1635.8,1635.7,7.3332]
[1693655598652,15.95060532,1635.8,1635.7,9.62641]
[1693655608468,15.95060532,1635.8,1635.7,7.20361]
[1693655608659,15.95060532,1635.8,1635.7,4.9104]
[1693655610861,15.95060532,1635.8,1635.7,7.20361]
[1693655614670,15.95060532,1635.8,1635.7,8.21996246]
[1693655615264,15.95060532,1635.8,1635.7,7.20361]
[1693655619974,15.95060532,1635.8,1635.7,8.21996246]
[1693655623370,15.95060532,1635.8,1635.7,7.20361]
[1693655623677,15.95060532,1635.8,1635.7,8.21996246]
[1693655625072,15.95060532,1635.8,1635.7,7.20361]
[1693655625871,15.95060532,1635.8,1635.7,8.21996246]
[1693655634179,15.95060532,1635.8,1635.7,4.9104]
[1693655635287,27.84590766,1635.8,1635.7,4.9104]
[1693655635487,15.95060532,1635.8,1635.7,4.9104]
[1693655640593,15.95060532,1635.8,1635.7,7.20361]
[1693655642801,15.95060532,1635.8,1635.7,4.9104]
[1693655643605,15.95060532,1635.8,1635.7,7.20361]
[1693655644107,15.95060532,1635.8,1635.7,8.21996246]
[1693655649810,15.95060532,1635.8,1635.7,7.20361]
[1693655650410,15.95060532,1635.8,1635.7,8.21996246]
[1693655651105,15.95060532,1635.8,1635.7,7.20361]
[1693655651911,15.95060532,1635.8,1635.7,8.21996246]
[1693655657406,15.95060532,1635.8,1635.7,7.20361]
[1693655657607,15.95060532,1635.8,1635.7,8.21996246]
[1693655664624,13.65753532,1635.8,1635.7,8.21996246]
[1693655669624,13.65753532,1635.8,1635.7,7.20361]
[1693655672629,13.65753532,1635.8,1635.7,9.49682]
[1693655672828,13.65753532,1635.8,1635.7,7.20361]
[1693655673429,13.65753532,1635.8,1635.7,8.21996246]
[1693655676333,25.23263701,1635.8,1635.7,8.21996246]
[1693655676630,13.65753532,1635.8,1635.7,7.20361]
[1693655685434,13.65753532,1635.8,1635.7,8.21996246]
[1693655689236,13.65753532,1635.8,1635.7,7.20361]
[1693655691236,13.65753532,1635.8,1635.7,8.21996246]
[1693655691536,13.65753532,1635.8,1635.7,10.51317246]
[1693655696236,13.65753532,1635.8,1635.7,8.21996246]
[1693655701240,13.65753532,1635.8,1635.7,10.51317246]
[1693655703339,13.65753532,1635.8,1635.7,8.21996246]
[1693655703541,13.65753532,1635.8,1635.7,7.20361]
[1693655704139,13.65753532,1635.8,1635.7,8.21996246]
[1693655707343,13.65753532,1635.8,1635.7,10.51317246]
[1693655708343,13.65753532,1635.8,1635.7,8.21996246]
[1693655709445,2.29307,1635.8,1635.7,12.82498246]
[1693655709641,20.70222786,1635.9,1635.8,0.0186]
[1693655709838,20.70222786,1635.9,1635.8,11.77104648]
[1693655710645,17.91032576,1635.9,1635.8,11.77104648]
[1693655710847,7.80529576,1635.9,1635.8,14.06411648]
[1693655711350,7.80529576,1635.9,1635.8,19.58311648]
[1693655713148,16.15998761,1636.3,1635.9,0.0186]
[1693655713341,16.15998761,1636.3,1636.2,0.0186]
[1693655713342,16.15993761,1636.3,1636.2,0.0186]
[1693655713549,2.2924,1636.3,1636.2,10.20499246]
[1693655713757,4.58477,1636.3,1636.2,10.20499246]
[1693655713959,4.58477,1636.3,1636.2,12.47492894]
[1693655716459,4.58477,1636.3,1636.2,14.96332894]
[1693655724767,7.45193352,1636.3,1636.2,14.96332894]
[1693655725472,7.45193352,1636.3,1636.2,13.94697648]
[1693655727470,7.45193352,1636.3,1636.2,14.96332894]
[1693655728068,4.58477,1636.3,1636.2,14.96332894]
[1693655728269,7.45193352,1636.3,1636.2,14.96332894]
[1693655728966,17.55567352,1636.3,1636.2,2.507]
[1693655729667,0.0611382,1636.2,1636.1,2.29252]
[1693655729874,0.0611382,1636.0,1635.9,2.29286]
[1693655730170,15.12295683,1636.0,1635.8,4.60458]
[1693655730465,10.94414064,1635.9,1635.8,2.31158]
[1693655731063,18.75607064,1635.9,1635.8,0.0186]
[1693655731673,18.75607064,1635.9,1635.8,2.31167]
[1693655732266,18.75607064,1635.9,1635.8,0.0186]
[1693655732466,18.75929239,1635.9,1635.8,2.31167]
[1693655734274,18.75929239,1635.9,1635.8,0.0186]
[1693655735665,0.0611382,1635.8,1635.7,4.59543954]
[1693655735868,9.2334182,1635.8,1635.7,0.00916954]
[1693655736176,9.2334182,1635.8,1635.7,4.59558954]
[1693655736379,9.2334182,1635.8,1635.7,2.30237954]
[1693655736573,9.2334182,1635.8,1635.7,4.59558954]
[1693655736975,9.2334182,1635.8,1635.7,0.00916954]
[1693655740580,9.2366309,1635.8,1635.7,0.00916954]
[1693655741882,14.7556309,1635.8,1635.7,0.00916954]
[1693655748385,14.7556309,1635.8,1635.7,2.30237954]
[1693655752481,14.7556309,1635.8,1635.7,4.87037954]
[1693655752692,6.9435609,1635.8,1635.7,10.473152]